[Event "7th Porticcio Open 2022"]
[Site "Porticcio"]
[Date "2022.07.08"]
[Round "9.3"]
[White "Peng, Li Min"]
[Black "Venkatesh, M.R."]
[Result "0-1"]
[ECO "A46"]
[WhiteElo "2516"]
[BlackElo "2479"]
[Annotator "TA"]
[PlyCount "90"]
[EventDate "2022.07.02"]
[EventType "swiss"]
[EventCountry "FRA"]
[SourceTitle "playchess.com"]
[Source "ChessBase"]
[SourceQuality "1"]
[TimeControl "5400+30"]

{[%evp 12,90,6,4,13,8,20,-12,0,-58,-52,-54,-53,-82,-63,-70,-59,-79,-49,-45,0,19,21,-7,0,-8,8,-79,-82,-68,-66,-112,-121,-100,45,-41,0,16,16,0,13,6,22,-2,-1,-78,-30,-80,-83,-109,-110,-100,-122,-105,-78,-87,-110,-119,-116,-112,-103,-112,-110,-110,-109,-292,-289,-284,-288,-254,-204,-204,-174,-187,-191,-2322,-2240,-2320,-2340,-29953,-5535]} 1. d4 {[%emt 0:01:52]} Nf6 {[%emt 0:03:24]} 2. Bg5 {[%emt 0:02:59]} e6 {[%emt 0:04:31]} 3. Nf3 {[%emt 0:03:35]} h6 {[%emt 0:01:21]} 4. Bh4 {[%emt 0:00:58]} b6 {[%emt 0:05:52]} 5. Nbd2 {[%emt 0:06:37]} Bb7 {[%emt 0:00:17]} 6. e3 {[%emt 0:00:07]} d6 {[%emt 0:02:32]} 7. Bd3 {[%emt 0:04:42]} Nbd7 {[%emt 0:06:59] A46: 1 d4 Nf6 2 Nf3 e6: Torre, London and Colle Systems.} (7... g5 $5 8. Bg3 g4 $11) 8. Qe2 {[%emt 0:04:17]} Be7 {[%emt 0:03:57]} 9. O-O-O {[%emt 0:03:28]} c5 {[%emt 0:02:52][%cal Bc7c5,Bc5c4][%mdl 32] [#] The position is equal.} 10. h3 $146 {[%emt 0:09:22]} (10. e4 $11) ({Predecessor:} 10. c3 Qc7 11. Kb1 g5 12. Bg3 Nh5 13. e4 Nxg3 14. hxg3 O-O-O 15. Ba6 Bxa6 16. Qxa6+ {1-0 (56) Vasiliadis,A (1873)-Balomenakis,H (1874) Kallithea 2010}) 10... a6 $15 {[%emt 0:06:19]} 11. c3 {[%emt 0:03:24]} b5 {[%emt 0:02:46]} 12. g4 {[%emt 0:00:54]} Qa5 {[%emt 0:08:27] White must now prevent ...c4.} 13. Kb1 $1 {[%emt 0:00:20]} c4 {[%emt 0:17:00]} 14. Bc2 {[%emt 0:00:17]} d5 {[%emt 0:01:27]} 15. e4 {[%emt 0:00:09]} g5 (15... Rb8 $15 16. Bg3 dxe4 17. Nxe4 (17. Bxb8 $2 exf3 18. Nxf3 Nxb8 $19) 17... Rc8) 16. Bg3 $11 {[%emt 0:00:41]} Rc8 {[%emt 0:03:55] ...b4 is the strong threat.} 17. Ne5 {[%emt 0:18:32]} (17. e5 $5 {[%cal Re5f6]} Nh7 18. Qe3 $14) 17... b4 $1 {[%emt 0:05:40]} 18. exd5 {[%emt 0:04:38]} Bxd5 {[%emt 0:10:21]} 19. Ndxc4 (19. Nexc4 $11 Qb5 20. Bd3 (20. Bb3 bxc3 21. bxc3 Nb6 $17)) 19... Qb5 $1 $17 {[%emt 0:00:05]} 20. Bd3 {[%emt 0:22:46][%cal Oc4d6] Strongly threatening Nd6+!} Qb7 $1 {[%emt 0:00:03]} 21. Rhe1 {[%emt 0:00:11]} (21. Na5 $15 {is superior.} Qa7 22. cxb4 (22. Bxa6 $2 Ra8 $19) 22... Bxb4 23. Nb3) 21... bxc3 {[%emt 0:00:08] Hoping for ...Nxe5.} 22. b3 {[%emt 0:00:21]} Nb6 {[%emt 0:02:22]} (22... O-O $17 {And now ...Nxe5 would win.} 23. Rc1 Nxe5 24. Bxe5 Bxc4 25. Bxc4 Nd5 26. Bxd5 (26. Bxa6 $2 c2+ 27. Rxc2 Rxc2 $19) 26... Qxd5) 23. Rc1 {[%emt 0:00:50]} (23. Ka1 $14) 23... Bb4 {[%emt 0:01:44]} 24. Rc2 {[%emt 0:02:43]} a5 $1 {[%emt 0:07:52]} 25. Nxb6 {[%emt 0:02:16]} Qxb6 {[%emt 0:00:02]} 26. Nc4 {[%emt 0:00:05]} Qd8 {[%emt 0:01:18][%cal Oa5a4]} (26... Qxd4 $2 27. Be5 Qa7 28. Bxf6 $18) 27. Be5 {[%emt 0:01:04]} a4 {[%emt 0:00:34]} 28. bxa4 {[%emt 0:01:06]} (28. f4 $11 {keeps the balance.}) 28... O-O {[%emt 0:00:48]} 29. Ka1 {[%emt 0:01:38]} (29. h4 $1 $11 Nd7 30. hxg5 Nxe5 31. dxe5) 29... Nd7 $1 {[%emt 0:00:20]} 30. h4 {[%emt 0:02:49]} Bxc4 {[%emt 0:01:24] The board is on fire.} (30... gxh4 31. Qe3 Nxe5 32. Nxe5 $15) 31. Bxc4 {[%emt 0:00:05]} Nxe5 {[%emt 0:00:03]} ({Reject} 31... gxh4 $6 32. Bh2 $11) 32. dxe5 {[%emt 0:00:05] [#]} Qd4 {[%emt 0:00:39]} ({But not} 32... gxh4 $6 33. Qe4 Kg7 34. f4 $11) 33. Bb3 {[%emt 0:01:06]} Rfd8 {[%emt 0:00:36]} 34. hxg5 {[%emt 0:01:20]} hxg5 {[%emt 0:00:05]} 35. Kb1 {[%emt 0:00:10][%cal Of2f4]} Rc5 {[%emt 0:01:15]} 36. Qe3 {[%emt 0:02:31]} Qxg4 {[%emt 0:00:52]} 37. a3 {[%emt 0:00:14]} Bxa3 {[%emt 0:00:29] 0x0.00222d9f6647dp-1022s more active pieces.} 38. Rxc3 $2 {[%emt 0:00:37] Now White is beyond hope.} (38. Qe4 $17 Qf4 39. Ka2) 38... Rxc3 $19 {[%emt 0:00:38]} 39. Qxc3 {[%emt 0:00:01] [#]} Bb4 $1 {[%emt 0:00:18]} 40. Qc7 {[%emt 0:00:01]} Rd2 {[%emt 0:00:39]} 41. Bc2 {[%emt 0:01:36] Prevents Qf5.} Bf8 {[%emt 0:00:34] aiming for ...Qb4+.} (41... Rxc2 42. Qd8+ Bf8 43. Kxc2 $11) 42. Qb6 {[%emt 0:00:18]} Rd4 {[%emt 0:00:16] ( -> ...Rb4+)} ({Weaker is} 42... Qc4 43. Rc1 Qh4 44. f3) 43. Qc6 $2 {[%emt 0:00:12]} (43. Ka2) 43... Rb4+ {[%emt 0:00:05]} 44. Kc1 {[%emt 0:00:24]} Rc4 {[%emt 0:00:21]} 45. Qa8 {[%emt 0:01:05]} Qf4+ {[%emt 0:00:26] Weighted Error Value: White=0.57/Black=0.12 (very precise)} 0-1

[Event "7th Porticcio Open 2022"]
[Site "Porticcio"]
[Date "2022.07.08"]
[Round "9.4"]
[White "Clarke, Brandon G I"]
[Black "Martin Duque, Jesus"]
[Result "1-0"]
[ECO "B48"]
[WhiteElo "2486"]
[BlackElo "2378"]
[Annotator "RC"]
[PlyCount "133"]
[EventDate "2022.07.02"]
[EventType "swiss"]
[EventCountry "FRA"]
[SourceTitle "playchess.com"]
[Source "ChessBase"]
[SourceQuality "1"]
[TimeControl "5400+30"]

1. e4 {[%emt 0:00:03]} c5 {[%emt 0:00:01]} 2. Nf3 {[%emt 0:00:10]} Nc6 {[%emt 0:00:01]} 3. d4 {[%emt 0:00:19]} cxd4 {[%emt 0:00:04]} 4. Nxd4 {[%emt 0:00:05]} e6 {[%emt 0:00:04]} 5. Nc3 {[%emt 0:00:07]} Qc7 {[%emt 0:00:04]} 6. Be3 {[%emt 0:00:50]} a6 {[%emt 0:00:00]} 7. Qf3 {[%emt 0:00:55]} Nf6 {[%emt 0:00:03]} 8. O-O-O {[%emt 0:00:11]} Ne5 {[%emt 0:00:05]} 9. Qg3 {[%emt 0:00:05]} b5 {[%emt 0:00:07]} 10. Bf4 {[%emt 0:00:46]} Nh5 {[%emt 0:19:26]} 11. Bxe5 {[%emt 0:00:15]} Nxg3 {[%emt 0:00:01]} 12. Bxc7 {[%emt 0:00:12]} Nxh1 {[%emt 0:00:02]} 13. f3 {[%emt 0:00:01]} Bc5 {[%emt 0:01:06]} 14. Bf4 {[%emt 0:03:42]} Nf2 {[%emt 0:12:26]} 15. Rd2 {[%emt 0:00:15]} h5 {[%emt 0:02:57]} 16. Be3 {[%emt 0:02:51]} Ng4 {[%emt 0:04:37]} 17. fxg4 {[%emt 0:00:10]} hxg4 {[%emt 0:00:01]} 18. Bf4 {[%emt 0:07:58]} Bb7 {[%emt 0:03:57]} 19. a3 {[%emt 0:07:35]} Rc8 {[%emt 0:01:43]} 20. Be2 {[%emt 0:05:29]} f6 {[%emt 0:05:13]} 21. Bg3 {[%emt 0:18:38]} Bb6 {[%emt 0:05:18]} 22. Kb1 {[%emt 0:15:01]} Ba5 {[%emt 0:04:11]} 23. Bxg4 {[%emt 0:01:59]} Bxc3 {[%emt 0:00:06]} 24. bxc3 {[%emt 0:00:04]} Rxc3 {[%emt 0:00:53]} 25. Kb2 {[%emt 0:02:35]} Rc8 {[%emt 0:04:09]} 26. Bf3 {[%emt 0:00:41]} Ke7 {[%emt 0:01:43]} 27. Ne2 {[%emt 0:10:17]} e5 {[%emt 0:01:05]} 28. Nc3 {[%emt 0:00:51]} d6 {[%emt 0:02:25]} 29. Nd1 {[%emt 0:02:56]} g6 {[%emt 0:02:47]} 30. Ne3 {[%emt 0:00:04]} Rhf8 {[%emt 0:01:50]} 31. Bh4 {[%emt 0:05:56]} Rc7 {[%emt 0:02:24]} 32. g4 {[%emt 0:00:33]} Ke6 {[%emt 0:02:56]} 33. Be1 {[%emt 0:00:12]} g5 {[%emt 0:02:55]} 34. h3 {[%emt 0:04:12]} a5 {[%emt 0:03:16]} 35. Rh2 {[%emt 0:01:28]} Ra8 {[%emt 0:03:19]} 36. h4 {[%emt 0:01:18]} Rh7 {[%emt 0:00:59]} 37. h5 {[%emt 0:00:06]} Bc6 {[%emt 0:00:19]} 38. Nd5 {[%emt 0:04:53]} Bxd5 {[%emt 0:01:12]} 39. exd5+ {[%emt 0:00:01]} Ke7 {[%emt 0:00:01]} 40. Be4 {[%emt 0:00:19]} Rhh8 {[%emt 0:00:12]} 41. Bf5 {[%emt 0:00:38]} Rhb8 {[%emt 0:03:07]} 42. Rh3 {[%emt 0:03:08]} b4 {[%emt 0:00:36]} 43. axb4 {[%emt 0:00:08]} axb4 {[%emt 0:00:01]} 44. Re3 {[%emt 0:00:29]} Ra5 {[%emt 0:01:21]} 45. Be6 {[%emt 0:00:55]} f5 {[%emt 0:03:16]} 46. gxf5 {[%emt 0:00:14]} Kf6 {[%emt 0:00:06]} 47. Re4 {[%emt 0:02:11]} Ra4 {[%emt 0:01:56]} 48. Rc4 {[%emt 0:00:19]} Ra7 {[%emt 0:02:00]} 49. Bd2 {[%emt 0:01:10]} Rh7 {[%emt 0:01:10]} 50. h6 {[%emt 0:00:01]} Rxh6 {[%emt 0:01:03]} 51. Rc7 {[%emt 0:00:07]} e4 {[%emt 0:00:14]} 52. Rf7+ {[%emt 0:00:43]} Ke5 {[%emt 0:00:01]} 53. Bxg5 {[%emt 0:00:01]} Rh2 {[%emt 0:00:18]} 54. Bf6+ {[%emt 0:02:14]} Kf4 {[%emt 0:00:01]} 55. Be7 {[%emt 0:00:20]} Rb6 {[%emt 0:01:41]} 56. Bd8 {[%emt 0:00:13]} e3 {[%emt 0:00:41]} 57. Re7 {[%emt 0:01:09]} e2 {[%emt 0:00:08]} 58. Bc8 {[%emt 0:00:02]} Rb5 {[%emt 0:01:44]} 59. Bc7 {[%emt 0:00:02]} Kf3 {[%emt 0:00:44]} 60. Bxd6 {[%emt 0:01:08]} Rf2 {[%emt 0:00:01]} 61. Kb3 {[%emt 0:01:08]} Kg2 {[%emt 0:03:41]} 62. f6 {[%emt 0:00:01]} Rb6 {[%emt 0:02:24]} 63. f7 {[%emt 0:01:01]} Rf3+ {[%emt 0:00:39]} 64. Kc4 {[%emt 0:00:30]} Rxd6 {[%emt 0:00:42]} 65. Rxe2+ {[%emt 0:00:01]} Kf1 {[%emt 0:00:01]} 66. Re6 {[%emt 0:00:57]} Rf4+ {[%emt 0:01:25]} 67. Kc5 {[%emt 0:00:07]} 1-0

[Event "7th Porticcio Open 2022"]
[Site "Porticcio"]
[Date "2022.07.08"]
[Round "9.5"]
[White "Mastrovasilis, Athanasios"]
[Black "Droin, Augustin"]
[Result "1-0"]
[ECO "D31"]
[WhiteElo "2527"]
[BlackElo "2391"]
[Annotator "TA"]
[PlyCount "59"]
[EventDate "2022.07.02"]
[EventType "swiss"]
[EventCountry "FRA"]
[SourceTitle "playchess.com"]
[Source "ChessBase"]
[SourceQuality "1"]
[TimeControl "5400+30"]

{[%evp 10,59,11,0,19,7,9,10,19,17,39,34,34,34,45,27,33,29,37,41,42,27,17,45,45,33,143,136,143,137,120,68,111,110,97,37,287,272,279,261,252,269,264,243,489,487,447,433,696,696,683,676]} 1. d4 {[%emt 0:04:26]} d5 {[%emt 0:00:14]} 2. c4 {[%emt 0:00:22]} e6 {[%emt 0:00:04]} 3. Nc3 {[%emt 0:00:43]} c6 {[%emt 0:00:04]} 4. cxd5 {[%emt 0:01:27]} exd5 {[%emt 0:00:04]} 5. Bf4 {[%emt 0:00:19]} Bf5 {[%emt 0:02:27]} 6. e3 {[%emt 0:00:29]} Bd6 {[%emt 0:10:32] D31: Queen's Gambit Declined: Semi-Slav without ...Nf6 (+ Marshall Gambit and Noteboom) and Exchange Variation lines without ...Nf6.} 7. Nge2 {[%emt 0:05:08]} Ne7 {[%emt 0:07:15] [#]} 8. Qd2 $146 {[%emt 0:07:12]} ({Predecessor:} 8. f3 Na6 9. a3 O-O 10. g4 Be6 11. Bg2 Nc7 12. O-O Ng6 13. Bxd6 Qxd6 14. Qe1 {0-1 (59) Corvi,M (2320)-Ortega,L (2475) Italy 1998}) 8... Bxf4 {[%emt 0:07:16] The position is equal.} 9. Nxf4 {[%emt 0:00:25]} Nd7 {[%emt 0:00:03]} 10. f3 {[%emt 0:02:32]} Ng6 {[%emt 0:03:39]} 11. g4 {[%emt 0:03:48]} Be6 {[%emt 0:06:38]} 12. O-O-O {[%emt 0:03:01]} Nxf4 {[%emt 0:17:31]} 13. exf4 {[%emt 0:00:07] Strongly threatening f5.} g6 {[%emt 0:00:07] Inhibits f5.} 14. f5 {[%emt 0:16:57]} gxf5 {[%emt 0:00:10]} 15. gxf5 {[%emt 0:00:07]} Bxf5 {[%emt 0:00:03]} 16. Re1+ {[%emt 0:00:07]} Be6 {[%emt 0:00:27]} 17. f4 {[%emt 0:13:51][%mdl 1024] White has compensation.} Kf8 {[%emt 0:05:14]} ({Better is} 17... O-O $1 $14) 18. Bd3 $16 {[%emt 0:11:37] And now f5 would win.} Bg4 {[%emt 0:01:11]} 19. Rhg1 {[%emt 0:05:07]} Nf6 {[%emt 0:09:31]} 20. Qe3 {[%emt 0:02:00]} (20. Na4 $16) 20... h6 {[%emt 0:07:32]} 21. Qe5 $36 {[%emt 0:03:18][%mdl 2048] Inhibits Qd6. Threatens to win with Rxg4. Keeping Black busy.} Rg8 {[%emt 0:00:18] [#]} 22. Rg3 {[%emt 0:01:16] White is much more active.} ({White should play} 22. Re3 $1 $16 {[%cal Re3g3]}) 22... Nh5 {[%emt 0:02:42] [#] This move loses the game for Black.} (22... Be6 23. f5 Bc8 24. Qf4 $18) (22... Bh5 $1 $14) 23. Rxg4 $1 $18 {[%emt 0:02:12][%mdl 512] Dancing on a razor blade.} Rxg4 {[%emt 0:00:02] [#]} 24. Qh8+ {[%emt 0:02:25]} (24. Qxh5 Qh4 25. Qe5 Qxh2 $11) 24... Rg8 {[%emt 0:00:15]} 25. Qxh6+ {[%emt 0:00:05]} Rg7 {[%emt 0:01:29]} (25... Ng7 $2 26. f5 f6 27. Na4 $18) 26. Qxh5 {[%emt 0:01:17] Hoping for Qh8+.} ({Don't play} 26. Qh8+ Rg8 27. Qh6+ (27. Qxh5 Qf6 $16) 27... Rg7 28. Qxh5 (28. Qh8+ Rg8 $18) 28... Qd6 $18) 26... Kg8 {[%emt 0:00:04] Prevents Qh8+.} (26... Qd6 27. Re5 Rg8) 27. Qh6 {[%emt 0:00:34] White is clearly winning.} Qf8 {[%emt 0:02:02]} 28. Nd1 {[%emt 0:02:06][%cal Oe1g1] Black must now prevent Rg1!} Re8 {[%emt 0:02:47] [#]} (28... Rg6 $142 29. Qxf8+ Kxf8 30. Bxg6 fxg6) 29. Rg1 $3 {[%emt 0:01:27][%csl Gd3][%cal Rh6h7][%mdl 512]} f5 {[%emt 0:01:35] [#]} 30. Bxf5 $1 {[%emt 0:00:24][%mdl 512] Weighted Error Value: White=0.06 (flawless) /Black=0.40} 1-0

[Event "7th Porticcio Open 2022"]
[Site "Porticcio"]
[Date "2022.07.08"]
[Round "9.6"]
[White "Piscopo, Pierluigi"]
[Black "Yankelevich, Lev"]
[Result "0-1"]
[ECO "C44"]
[WhiteElo "2343"]
[BlackElo "2496"]
[Annotator "TA"]
[PlyCount "92"]
[EventDate "2022.07.02"]
[EventType "swiss"]
[EventCountry "FRA"]
[SourceTitle "playchess.com"]
[Source "ChessBase"]
[SourceQuality "1"]
[TimeControl "5400+30"]

{[%evp 14,92,0,6,14,-4,2,0,20,21,27,4,21,27,32,44,56,10,14,22,17,33,29,12,54,45,52,19,44,37,35,21,21,25,22,29,27,9,20,0,0,-6,0,-8,0,-35,-27,-93,-101,-102,-97,-95,-97,-97,-88,-110,-116,-116,-118,-291,-279,-292,-296,-452,-442,-707,-385,-761,-674,-704,-432,-5397,-5397,-1602,-498,-443,-418,-395,-192,-362,-309]} 1. e4 {[%emt 0:00:03]} e5 {[%emt 0:00:13]} 2. Nf3 {[%emt 0:00:38]} Nc6 {[%emt 0:00:03]} 3. d4 {[%emt 0:00:31]} exd4 {[%emt 0:00:05]} 4. c3 {[%emt 0:00:08]} Nf6 {[%emt 0:00:13]} 5. e5 {[%emt 0:01:09]} Nd5 {[%emt 0:00:06]} 6. cxd4 {[%emt 0:00:24]} Bb4+ {[%emt 0:00:12]} 7. Bd2 {[%emt 0:00:14]} Bxd2+ {[%emt 0:00:21]} 8. Nbxd2 {[%emt 0:00:07]} O-O {[%emt 0:02:39] C44: Ponziani Opening and Scotch Gambit.} 9. Bb5 {[%emt 0:00:29]} (9. Qb3 $5 {[%cal Rb3d5]} Nb6 10. Bd3 $11) 9... Nce7 {[%emt 0:08:27]} 10. O-O {[%emt 0:01:20]} d6 {[%emt 0:00:03] The position is equal.} 11. Re1 {[%emt 0:00:28]} Bg4 {[%emt 0:02:57]} 12. h3 {[%emt 0:01:55]} Bh5 {[%emt 0:03:55] [#]} 13. Qb3 $146 {[%emt 0:10:19]} ({Predecessor:} 13. Ne4 dxe5 14. dxe5 Nf5 15. Qb3 {½-½ (15) Hlavacek,K (1970)-Kozak,M (2175) Klatovy 2001}) 13... c6 {[%emt 0:22:39]} 14. Bf1 {[%emt 0:00:44]} dxe5 {[%emt 0:00:26]} 15. dxe5 {[%emt 0:00:58]} (15. Qxb7 $14 exd4 16. Nxd4) 15... Qb6 $11 {[%emt 0:00:07]} 16. Qa4 {[%emt 0:20:12]} Qb4 {[%emt 0:03:17]} ({Don't do} 16... Qxb2 17. Rab1 Nc3 18. Qd4 $16 (18. Rxb2 Nxa4 19. Rxb7 Nd5 $16)) 17. Qc2 {[%emt 0:00:55]} Bg6 {[%emt 0:02:17]} 18. Qc1 {[%emt 0:01:25]} Qf4 {[%emt 0:00:25]} 19. g3 {[%emt 0:12:07]} Qf5 {[%emt 0:03:32]} 20. a3 {[%emt 0:08:17]} Qd7 {[%emt 0:03:30]} 21. b4 {[%emt 0:05:15]} Bf5 {[%emt 0:01:49][%cal Bg6f5,Bf5e6,Be6d5][%mdl 32]} 22. Kh2 {[%emt 0:01:25]} a5 {[%emt 0:11:26]} 23. Qb2 {[%emt 0:01:38]} axb4 {[%emt 0:02:33]} 24. axb4 {[%emt 0:00:05]} Be6 {[%emt 0:00:10]} 25. Bg2 {[%emt 0:02:56]} Qc7 {[%emt 0:02:48]} 26. Nc4 {[%emt 0:16:55]} Nf4 {[%emt 0:01:05]} 27. Bf1 {[%emt 0:00:55] [#] Prevents Nd3. Hoping for Rxa8.} Bd5 {[%emt 0:01:59]} 28. Ng5 {[%emt 0:07:32] And now Rxa8 would win.} Ne6 {[%emt 0:00:08]} 29. h4 {[%emt 0:00:09]} Nf5 {[%emt 0:05:13]} 30. Ne3 {[%emt 0:00:47]} (30. Rxa8 $11 {keeps the balance.} Rxa8 31. Ra1) 30... Nxg5 $17 {[%emt 0:03:04]} (30... Nxe3 {feels hotter.} 31. Rxe3 Rxa1 32. Qxa1 Nxg5 33. hxg5 Qe7) 31. hxg5 {[%emt 0:00:14]} Nxe3 {[%emt 0:00:13]} 32. Rxe3 {[%emt 0:00:12] [#]} Rxa1 $1 {[%emt 0:00:03]} 33. Qxa1 {[%emt 0:00:03]} Qe7 {[%emt 0:00:07][%csl LRb4,LRg5]} 34. Qd4 {[%emt 0:04:03]} Qxg5 {[%emt 0:00:05]} 35. Qh4 {[%emt 0:01:46]} Qf5 {[%emt 0:00:40]} 36. g4 $2 {[%emt 0:00:55] This costs White the game.} (36. Qf4 $17 {might work better.} Qh5+ 37. Qh4 Qxh4+ 38. gxh4) 36... Qf4+ $19 {[%emt 0:00:03]} 37. Qg3 {[%emt 0:00:23]} Qxb4 {[%emt 0:00:12]} 38. f4 (38. Bg2 {was necessary.}) 38... Ra8 {[%emt 0:01:19]} 39. f5 {[%emt 0:00:08]} (39. Kh3 $142) 39... Qd2+ {[%emt 0:02:15]} 40. Re2 $2 {[%emt 0:01:04]} (40. Kh3) 40... Qh6+ {[%emt 0:00:12]} 41. Kg1 {[%emt 0:00:58]} Ra1 {[%emt 0:11:46] ( -> ...Qh1+)} 42. Kf2 {[%emt 0:00:33]} (42. Rh2 $142 Qg5 43. e6) 42... Qc1 {[%emt 0:00:18]} 43. Bh3 {[%emt 0:00:33]} Qc5+ {[%emt 0:00:56]} (43... Ra3 $142 44. Qxa3 Qxa3) 44. Qe3 {[%emt 0:00:05]} Qxe3+ 45. Rxe3 {[%emt 0:00:01]} Rb1 {[%emt 0:02:44]} (45... b5 $142 46. Bf1 b4) 46. g5 $2 {[%emt 0:01:38]} (46. Ra3 h6 47. Bf1) 46... Rb2+ {[%emt 0:05:32] Weighted Error Value: White=0.55/Black=0.37} 0-1

[Event "7th Porticcio Open 2022"]
[Site "Porticcio"]
[Date "2022.07.08"]
[Round "9.7"]
[White "Mathieu, Phileas"]
[Black "Rakotomaharo, Fy Antenaina"]
[Result "1-0"]
[ECO "C77"]
[WhiteElo "2331"]
[BlackElo "2490"]
[Annotator "RC"]
[PlyCount "151"]
[EventDate "2022.07.02"]
[EventType "swiss"]
[EventCountry "FRA"]
[SourceTitle "playchess.com"]
[Source "ChessBase"]
[SourceQuality "1"]
[TimeControl "5400+30"]

1. e4 {[%emt 0:00:03]} e5 {[%emt 0:02:51]} 2. Nf3 {[%emt 0:00:06]} Nc6 {[%emt 0:00:05]} 3. Bb5 {[%emt 0:00:04]} a6 {[%emt 0:00:06]} 4. Ba4 {[%emt 0:00:01]} Nf6 {[%emt 0:01:08]} 5. d3 {[%emt 0:00:04]} d6 {[%emt 0:01:37]} 6. c3 {[%emt 0:00:18]} g6 {[%emt 0:00:07]} 7. h3 {[%emt 0:00:10]} Bg7 {[%emt 0:00:17]} 8. Be3 {[%emt 0:00:04]} O-O {[%emt 0:06:42]} 9. Nbd2 {[%emt 0:00:02]} Re8 {[%emt 0:00:15]} 10. O-O {[%emt 0:00:07]} h6 {[%emt 0:00:24]} 11. d4 {[%emt 0:06:33]} b5 {[%emt 0:15:56]} 12. Bc2 {[%emt 0:00:25]} Nh5 {[%emt 0:03:50]} 13. a4 {[%emt 0:04:40]} Rb8 {[%emt 0:00:00]} 14. axb5 axb5 15. dxe5 {[%emt 0:30:19]} dxe5 {[%emt 0:01:29]} 16. Nb3 {[%emt 0:00:11]} Qf6 {[%emt 0:01:11]} 17. Nc5 {[%emt 0:00:43]} Rd8 {[%emt 0:15:07]} 18. Qe2 {[%emt 0:03:11]} Nf4 {[%emt 0:00:44]} 19. Bxf4 {[%emt 0:00:06]} exf4 {[%emt 0:00:16]} 20. Rfd1 {[%emt 0:01:21]} Qe7 {[%emt 0:00:12]} 21. Rxd8+ {[%emt 0:03:18]} Nxd8 {[%emt 0:00:18]} 22. Na6 {[%emt 0:04:28]} Rb6 {[%emt 0:06:19]} 23. Nb4 {[%emt 0:01:44]} Bb7 {[%emt 0:00:05]} 24. Rd1 {[%emt 0:04:31]} c6 {[%emt 0:06:42]} 25. Qd2 {[%emt 0:06:54]} Ne6 {[%emt 0:00:05]} 26. Bb3 {[%emt 0:00:29]} g5 {[%emt 0:12:31]} 27. Bxe6 {[%emt 0:04:13]} fxe6 {[%emt 0:00:03]} 28. Qd8+ {[%emt 0:00:13]} Qxd8 {[%emt 0:00:04]} 29. Rxd8+ {[%emt 0:00:04]} Kf7 {[%emt 0:00:03]} 30. Rb8 {[%emt 0:02:43]} Ke7 {[%emt 0:00:22]} 31. Nxc6+ {[%emt 0:01:21]} Rxc6 {[%emt 0:00:57]} 32. Rxb7+ {[%emt 0:00:13]} Kf6 {[%emt 0:00:03]} 33. Rxb5 {[%emt 0:00:33]} Bf8 {[%emt 0:00:35]} 34. Kf1 {[%emt 0:02:02]} Rc4 {[%emt 0:00:11]} 35. e5+ {[%emt 0:02:33]} Kf7 {[%emt 0:00:03]} 36. Nd4 {[%emt 0:00:58]} Bg7 {[%emt 0:00:18]} 37. Ke2 {[%emt 0:02:04]} Ra4 {[%emt 0:00:04]} 38. Kf3 {[%emt 0:01:22]} Ra6 {[%emt 0:01:23]} 39. Rb7+ {[%emt 0:01:44]} Kg6 {[%emt 0:00:05]} 40. Re7 {[%emt 0:02:29]} Ra2 {[%emt 0:00:07]} 41. Rxe6+ {[%emt 0:03:32]} Kf7 {[%emt 0:00:01]} 42. Rb6 {[%emt 0:01:07]} Bxe5 {[%emt 0:00:05]} 43. Ke4 {[%emt 0:00:33]} Bf6 {[%emt 0:00:19]} 44. Kf5 {[%emt 0:01:22]} Be7 {[%emt 0:00:33]} 45. Nc6 {[%emt 0:03:27]} Bc5 {[%emt 0:00:25]} 46. Rb7+ {[%emt 0:00:34]} Ke8 {[%emt 0:00:18]} 47. f3 {[%emt 0:07:28]} Be3 {[%emt 0:00:05]} 48. Ke6 {[%emt 0:01:10]} Kf8 {[%emt 0:00:13]} 49. Kf6 {[%emt 0:00:29]} Ke8 {[%emt 0:01:34]} 50. Kg7 {[%emt 0:00:55]} Bc5 {[%emt 0:00:22]} 51. Rb5 {[%emt 0:01:56]} Be3 {[%emt 0:00:50]} 52. Rd5 {[%emt 0:00:16]} Bb6 {[%emt 0:00:43]} 53. Rd2 {[%emt 0:00:19]} Bc7 {[%emt 0:00:12]} 54. Re2+ {[%emt 0:00:44]} Kd7 {[%emt 0:00:05]} 55. Nb4 {[%emt 0:00:13]} Ra5 {[%emt 0:01:51]} 56. Kxh6 {[%emt 0:00:06]} Bb6 {[%emt 0:00:03]} 57. Kg6 {[%emt 0:00:59]} Rb5 {[%emt 0:02:59]} 58. Rd2+ {[%emt 0:01:12]} Ke6 {[%emt 0:00:09]} 59. Re2+ {[%emt 0:00:01]} Kd6 {[%emt 0:00:58]} 60. Rd2+ {[%emt 0:00:01]} Ke6 {[%emt 0:00:21]} 61. Rd5 {[%emt 0:00:22]} Rxb4 {[%emt 0:02:12]} 62. cxb4 {[%emt 0:00:01]} Kxd5 {[%emt 0:00:08]} 63. Kxg5 {[%emt 0:00:09]} Ke5 {[%emt 0:01:01]} 64. Kg6 {[%emt 0:00:59]} Bf2 {[%emt 0:03:04]} 65. b5 {[%emt 0:00:53]} Bh4 {[%emt 0:01:44]} 66. b6 {[%emt 0:00:23]} Kd6 {[%emt 0:00:03]} 67. Kf5 {[%emt 0:00:09]} Kc6 {[%emt 0:00:04]} 68. Kxf4 {[%emt 0:00:08]} Kxb6 {[%emt 0:00:03]} 69. g4 {[%emt 0:01:00]} Bf6 {[%emt 0:00:03]} 70. b3 {[%emt 0:00:15]} Bc3 {[%emt 0:01:23]} 71. Kf5 {[%emt 0:00:52]} Kc7 {[%emt 0:00:04]} 72. f4 {[%emt 0:00:13]} Kd6 {[%emt 0:00:07]} 73. Kg6 {[%emt 0:00:04]} Ke7 {[%emt 0:00:04]} 74. f5 {[%emt 0:00:04]} Be1 {[%emt 0:00:05]} 75. g5 {[%emt 0:00:47]} Kf8 {[%emt 0:00:13]} 76. Kh7 {[%emt 0:00:58]} 1-0